{"text_format":"1","workbook":"xlsx","n_sheets":2,"sheets":["data","renommer"],"not_rendered":{"charts":0,"images":0,"macros":1,"external_links":0,"defined_names":0,"comments":0,"pivot_tables":0},"unopened":[],"bounds":{"document_bytes":16777216,"sheet_cells":100000,"rows_first":2000,"rows_last":500,"rows_between":2000,"halvings":0,"cell_chars":16384,"cell_head_chars":4096},"cells_cut":0,"cells_raw":0,"read":"whole","date_system":"1900"}

{"sheet":"data","index":0,"n_rows":13,"n_cols":79,"rows_kept":13,"cut":false,"hidden":false,"merged":[]}
["Old Code",null,null,null,null,null,null,null,null,null,null,null,null,null,null,null,null,null,null,null,null,null,null,null,null,null,null,null,null,null,null,null,null,null,null,null,null,null,null,null,null,null,null,null,null,null,null,null,null,null,null,null,null,null,null,null,null,null,null,null,null,null,null,null,null,null,null,null,null,null,null,null,null,null,null,null,null,null,"New Code"]
["oldinv01",null,null,null,null,null,null,null,null,null,null,null,null,null,null,null,null,null,null,null,null,null,null,null,null,null,null,null,null,null,null,null,null,null,null,null,null,null,null,null,null,null,null,null,null,null,null,null,null,null,null,null,null,null,null,null,null,null,null,null,null,null,null,null,null,null,null,null,null,null,null,null,null,null,null,null,null,null,"newinv01"]
["oldinv02",null,null,null,null,null,null,null,null,null,null,null,null,null,null,null,null,null,null,null,null,null,null,null,null,null,null,null,null,null,null,null,null,null,null,null,null,null,null,null,null,null,null,null,null,null,null,null,null,null,null,null,null,null,null,null,null,null,null,null,null,null,null,null,null,null,null,null,null,null,null,null,null,null,null,null,null,null,"newinv02"]
["oldinv03",null,null,null,null,null,null,null,null,null,null,null,null,null,null,null,null,null,null,null,null,null,null,null,null,null,null,null,null,null,null,null,null,null,null,null,null,null,null,null,null,null,null,null,null,null,null,null,null,null,null,null,null,null,null,null,null,null,null,null,null,null,null,null,null,null,null,null,null,null,null,null,null,null,null,null,null,null,"newinv03"]
["oldinv04",null,null,null,null,null,null,null,null,null,null,null,null,null,null,null,null,null,null,null,null,null,null,null,null,null,null,null,null,null,null,null,null,null,null,null,null,null,null,null,null,null,null,null,null,null,null,null,null,null,null,null,null,null,null,null,null,null,null,null,null,null,null,null,null,null,null,null,null,null,null,null,null,null,null,null,null,null,"newinv04"]
["oldinv05",null,null,null,null,null,null,null,null,null,null,null,null,null,null,null,null,null,null,null,null,null,null,null,null,null,null,null,null,null,null,null,null,null,null,null,null,null,null,null,null,null,null,null,null,null,null,null,null,null,null,null,null,null,null,null,null,null,null,null,null,null,null,null,null,null,null,null,null,null,null,null,null,null,null,null,null,null,"newinv05"]
["oldinv06",null,null,null,null,null,null,null,null,null,null,null,null,null,null,null,null,null,null,null,null,null,null,null,null,null,null,null,null,null,null,null,null,null,null,null,null,null,null,null,null,null,null,null,null,null,null,null,null,null,null,null,null,null,null,null,null,null,null,null,null,null,null,null,null,null,null,null,null,null,null,null,null,null,null,null,null,null,"newinv06"]
["oldinv07",null,null,null,null,null,null,null,null,null,null,null,null,null,null,null,null,null,null,null,null,null,null,null,null,null,null,null,null,null,null,null,null,null,null,null,null,null,null,null,null,null,null,null,null,null,null,null,null,null,null,null,null,null,null,null,null,null,null,null,null,null,null,null,null,null,null,null,null,null,null,null,null,null,null,null,null,null,"newinv07"]
["oldinv08",null,null,null,null,null,null,null,null,null,null,null,null,null,null,null,null,null,null,null,null,null,null,null,null,null,null,null,null,null,null,null,null,null,null,null,null,null,null,null,null,null,null,null,null,null,null,null,null,null,null,null,null,null,null,null,null,null,null,null,null,null,null,null,null,null,null,null,null,null,null,null,null,null,null,null,null,null,"newinv08"]
["oldinv09"]
["oldinv10",null,null,null,null,null,null,null,null,null,null,null,null,null,null,null,null,null,null,null,null,null,null,null,null,null,null,null,null,null,null,null,null,null,null,null,null,null,null,null,null,null,null,null,null,null,null,null,null,null,null,null,null,null,null,null,null,null,null,null,null,null,null,null,null,null,null,null,null,null,null,null,null,null,null,null,null,null,"newinv10"]
["oldinv11",null,null,null,null,null,null,null,null,null,null,null,null,null,null,null,null,null,null,null,null,null,null,null,null,null,null,null,null,null,null,null,null,null,null,null,null,null,null,null,null,null,null,null,null,null,null,null,null,null,null,null,null,null,null,null,null,null,null,null,null,null,null,null,null,null,null,null,null,null,null,null,null,null,null,null,null,null,"newinv11"]
["oldinv13"]

{"sheet":"renommer","index":1,"n_rows":14,"n_cols":4,"rows_kept":14,"cut":false,"hidden":false,"merged":[]}
["Old Code","New Code cliquer ->","New Code EQUIV","New Code RECHERCHEV"]
["oldinv01",null,{"$f":"IF(ISNA(MATCH(A2,data!$A$2:$A$13,0)),\n       \"Code inventaire non trouvé\",\n      IF(INDIRECT(\"data!$CA\" &MATCH(A2,data!$A$2:$A$13,0)+1) = \"\",\n          A2,\n         INDIRECT(\"data!$CA\" &MATCH(A2,data!$A$2:$A$13,0)+1)))","v":"newinv01"},{"$f":"IF(ISNA(VLOOKUP(A2,data!$A$2:$CA$13,COLUMN(data!$CA$1),FALSE)),\n      \"Code inventaire non trouvé\",\n      IF(VLOOKUP(A2,data!$A$2:$CA$13,COLUMN(data!$CA$1),FALSE)=0,\n          A2,\n          VLOOKUP(A2,data!$A$2:$CA$13,COLUMN(data!$CA$1),FALSE)))","v":"newinv01"}]
["oldinv03",null,{"$f":"IF(ISNA(MATCH(A3,data!$A$2:$A$13,0)),\n       \"Code inventaire non trouvé\",\n      IF(INDIRECT(\"data!$CA\" &MATCH(A3,data!$A$2:$A$13,0)+1) = \"\",\n          A3,\n         INDIRECT(\"data!$CA\" &MATCH(A3,data!$A$2:$A$13,0)+1)))","v":"newinv03"},{"$f":"IF(ISNA(VLOOKUP(A3,data!$A$2:$CA$13,COLUMN(data!$CA$1),FALSE)),\n      \"Code inventaire non trouvé\",\n      IF(VLOOKUP(A3,data!$A$2:$CA$13,COLUMN(data!$CA$1),FALSE)=0,\n          A3,\n          VLOOKUP(A3,data!$A$2:$CA$13,COLUMN(data!$CA$1),FALSE)))","v":"newinv03"}]
["oldinv05",null,{"$f":"IF(ISNA(MATCH(A4,data!$A$2:$A$13,0)),\n       \"Code inventaire non trouvé\",\n      IF(INDIRECT(\"data!$CA\" &MATCH(A4,data!$A$2:$A$13,0)+1) = \"\",\n          A4,\n         INDIRECT(\"data!$CA\" &MATCH(A4,data!$A$2:$A$13,0)+1)))","v":"newinv05"},{"$f":"IF(ISNA(VLOOKUP(A4,data!$A$2:$CA$13,COLUMN(data!$CA$1),FALSE)),\n      \"Code inventaire non trouvé\",\n      IF(VLOOKUP(A4,data!$A$2:$CA$13,COLUMN(data!$CA$1),FALSE)=0,\n          A4,\n          VLOOKUP(A4,data!$A$2:$CA$13,COLUMN(data!$CA$1),FALSE)))","v":"newinv05"}]
["oldinv07",null,{"$f":"IF(ISNA(MATCH(A5,data!$A$2:$A$13,0)),\n       \"Code inventaire non trouvé\",\n      IF(INDIRECT(\"data!$CA\" &MATCH(A5,data!$A$2:$A$13,0)+1) = \"\",\n          A5,\n         INDIRECT(\"data!$CA\" &MATCH(A5,data!$A$2:$A$13,0)+1)))","v":"newinv07"},{"$f":"IF(ISNA(VLOOKUP(A5,data!$A$2:$CA$13,COLUMN(data!$CA$1),FALSE)),\n      \"Code inventaire non trouvé\",\n      IF(VLOOKUP(A5,data!$A$2:$CA$13,COLUMN(data!$CA$1),FALSE)=0,\n          A5,\n          VLOOKUP(A5,data!$A$2:$CA$13,COLUMN(data!$CA$1),FALSE)))","v":"newinv07"}]
["oldinv09",null,{"$f":"IF(ISNA(MATCH(A6,data!$A$2:$A$13,0)),\n       \"Code inventaire non trouvé\",\n      IF(INDIRECT(\"data!$CA\" &MATCH(A6,data!$A$2:$A$13,0)+1) = \"\",\n          A6,\n         INDIRECT(\"data!$CA\" &MATCH(A6,data!$A$2:$A$13,0)+1)))","v":"oldinv09"},{"$f":"IF(ISNA(VLOOKUP(A6,data!$A$2:$CA$13,COLUMN(data!$CA$1),FALSE)),\n      \"Code inventaire non trouvé\",\n      IF(VLOOKUP(A6,data!$A$2:$CA$13,COLUMN(data!$CA$1),FALSE)=0,\n          A6,\n          VLOOKUP(A6,data!$A$2:$CA$13,COLUMN(data!$CA$1),FALSE)))","v":"oldinv09"}]
["oldinv11",null,{"$f":"IF(ISNA(MATCH(A7,data!$A$2:$A$13,0)),\n       \"Code inventaire non trouvé\",\n      IF(INDIRECT(\"data!$CA\" &MATCH(A7,data!$A$2:$A$13,0)+1) = \"\",\n          A7,\n         INDIRECT(\"data!$CA\" &MATCH(A7,data!$A$2:$A$13,0)+1)))","v":"newinv11"},{"$f":"IF(ISNA(VLOOKUP(A7,data!$A$2:$CA$13,COLUMN(data!$CA$1),FALSE)),\n      \"Code inventaire non trouvé\",\n      IF(VLOOKUP(A7,data!$A$2:$CA$13,COLUMN(data!$CA$1),FALSE)=0,\n          A7,\n          VLOOKUP(A7,data!$A$2:$CA$13,COLUMN(data!$CA$1),FALSE)))","v":"newinv11"}]
["oldinv13",null,{"$f":"IF(ISNA(MATCH(A8,data!$A$2:$A$13,0)),\n       \"Code inventaire non trouvé\",\n      IF(INDIRECT(\"data!$CA\" &MATCH(A8,data!$A$2:$A$13,0)+1) = \"\",\n          A8,\n         INDIRECT(\"data!$CA\" &MATCH(A8,data!$A$2:$A$13,0)+1)))","v":"oldinv13"},{"$f":"IF(ISNA(VLOOKUP(A8,data!$A$2:$CA$13,COLUMN(data!$CA$1),FALSE)),\n      \"Code inventaire non trouvé\",\n      IF(VLOOKUP(A8,data!$A$2:$CA$13,COLUMN(data!$CA$1),FALSE)=0,\n          A8,\n          VLOOKUP(A8,data!$A$2:$CA$13,COLUMN(data!$CA$1),FALSE)))","v":"oldinv13"}]
["oldinv12",null,{"$f":"IF(ISNA(MATCH(A9,data!$A$2:$A$13,0)),\n       \"Code inventaire non trouvé\",\n      IF(INDIRECT(\"data!$CA\" &MATCH(A9,data!$A$2:$A$13,0)+1) = \"\",\n          A9,\n         INDIRECT(\"data!$CA\" &MATCH(A9,data!$A$2:$A$13,0)+1)))","v":"Code inventaire non trouvé"},{"$f":"IF(ISNA(VLOOKUP(A9,data!$A$2:$CA$13,COLUMN(data!$CA$1),FALSE)),\n      \"Code inventaire non trouvé\",\n      IF(VLOOKUP(A9,data!$A$2:$CA$13,COLUMN(data!$CA$1),FALSE)=0,\n          A9,\n          VLOOKUP(A9,data!$A$2:$CA$13,COLUMN(data!$CA$1),FALSE)))","v":"Code inventaire non trouvé"}]
["oldinv10",null,{"$f":"IF(ISNA(MATCH(A10,data!$A$2:$A$13,0)),\n       \"Code inventaire non trouvé\",\n      IF(INDIRECT(\"data!$CA\" &MATCH(A10,data!$A$2:$A$13,0)+1) = \"\",\n          A10,\n         INDIRECT(\"data!$CA\" &MATCH(A10,data!$A$2:$A$13,0)+1)))","v":"newinv10"},{"$f":"IF(ISNA(VLOOKUP(A10,data!$A$2:$CA$13,COLUMN(data!$CA$1),FALSE)),\n      \"Code inventaire non trouvé\",\n      IF(VLOOKUP(A10,data!$A$2:$CA$13,COLUMN(data!$CA$1),FALSE)=0,\n          A10,\n          VLOOKUP(A10,data!$A$2:$CA$13,COLUMN(data!$CA$1),FALSE)))","v":"newinv10"}]
["oldinv08",null,{"$f":"IF(ISNA(MATCH(A11,data!$A$2:$A$13,0)),\n       \"Code inventaire non trouvé\",\n      IF(INDIRECT(\"data!$CA\" &MATCH(A11,data!$A$2:$A$13,0)+1) = \"\",\n          A11,\n         INDIRECT(\"data!$CA\" &MATCH(A11,data!$A$2:$A$13,0)+1)))","v":"newinv08"},{"$f":"IF(ISNA(VLOOKUP(A11,data!$A$2:$CA$13,COLUMN(data!$CA$1),FALSE)),\n      \"Code inventaire non trouvé\",\n      IF(VLOOKUP(A11,data!$A$2:$CA$13,COLUMN(data!$CA$1),FALSE)=0,\n          A11,\n          VLOOKUP(A11,data!$A$2:$CA$13,COLUMN(data!$CA$1),FALSE)))","v":"newinv08"}]
["oldinv06",null,{"$f":"IF(ISNA(MATCH(A12,data!$A$2:$A$13,0)),\n       \"Code inventaire non trouvé\",\n      IF(INDIRECT(\"data!$CA\" &MATCH(A12,data!$A$2:$A$13,0)+1) = \"\",\n          A12,\n         INDIRECT(\"data!$CA\" &MATCH(A12,data!$A$2:$A$13,0)+1)))","v":"newinv06"},{"$f":"IF(ISNA(VLOOKUP(A12,data!$A$2:$CA$13,COLUMN(data!$CA$1),FALSE)),\n      \"Code inventaire non trouvé\",\n      IF(VLOOKUP(A12,data!$A$2:$CA$13,COLUMN(data!$CA$1),FALSE)=0,\n          A12,\n          VLOOKUP(A12,data!$A$2:$CA$13,COLUMN(data!$CA$1),FALSE)))","v":"newinv06"}]
["oldinv04",null,{"$f":"IF(ISNA(MATCH(A13,data!$A$2:$A$13,0)),\n       \"Code inventaire non trouvé\",\n      IF(INDIRECT(\"data!$CA\" &MATCH(A13,data!$A$2:$A$13,0)+1) = \"\",\n          A13,\n         INDIRECT(\"data!$CA\" &MATCH(A13,data!$A$2:$A$13,0)+1)))","v":"newinv04"},{"$f":"IF(ISNA(VLOOKUP(A13,data!$A$2:$CA$13,COLUMN(data!$CA$1),FALSE)),\n      \"Code inventaire non trouvé\",\n      IF(VLOOKUP(A13,data!$A$2:$CA$13,COLUMN(data!$CA$1),FALSE)=0,\n          A13,\n          VLOOKUP(A13,data!$A$2:$CA$13,COLUMN(data!$CA$1),FALSE)))","v":"newinv04"}]
["oldinv02",null,{"$f":"IF(ISNA(MATCH(A14,data!$A$2:$A$13,0)),\n       \"Code inventaire non trouvé\",\n      IF(INDIRECT(\"data!$CA\" &MATCH(A14,data!$A$2:$A$13,0)+1) = \"\",\n          A14,\n         INDIRECT(\"data!$CA\" &MATCH(A14,data!$A$2:$A$13,0)+1)))","v":"newinv02"},{"$f":"IF(ISNA(VLOOKUP(A14,data!$A$2:$CA$13,COLUMN(data!$CA$1),FALSE)),\n      \"Code inventaire non trouvé\",\n      IF(VLOOKUP(A14,data!$A$2:$CA$13,COLUMN(data!$CA$1),FALSE)=0,\n          A14,\n          VLOOKUP(A14,data!$A$2:$CA$13,COLUMN(data!$CA$1),FALSE)))","v":"newinv02"}]